Cogmind - Beta 14 @@@ ROGUE MODE // 2024.10.19 @ 22:41:49 Player: karotgaemin Result: Self-destructed Performance ------------- Evolutions (1) 500 Regions Visited (2) 400 Robots Destroyed (25) 125 Value Destroyed (588) 588 Prototype IDs (0) 0 Alien Tech Used (0) 0 Bonus (0) 0 TOTAL SCORE: 1613 Bonus ------- None Cogmind --------- Core Integrity 209/400 Matter 291/300 Energy 100/100 System Corruption 0% Temperature Cool (27) Movement Core (400) Ox7 Location -9/Materials Parts ------- > --- POWER (1) -------- (None) > --- PROPULSION (2) --- (None) > --- UTILITY (4) ------ Large Storage Unit Sensor Array Hacking Suite > --- WEAPON (2) ------- Light Assault Rifle > --- INVENTORY (15) --- Light Ion Engine Light Treads Light Treads Light Treads Light Treads Light Treads Wheel Compact Wheel Seismic Detector ECM Suite Peak State ------------ > --- POWER ------------ Light Nuclear Core > --- PROPULSION ------- Light Treads Improved Treads > --- UTILITY ---------- Heat Sink Large Storage Unit Sensor Array Hacking Suite > --- WEAPON ----------- Medium Laser Particle Gun > --- INVENTORY -------- Ion Engine Light Ion Engine Light Treads Light Treads Light Treads Light Treads Light Treads Wheel Compact Wheel Seismic Detector ECM Suite EM Pulse Gun Light Assault Rifle [Rating: 16] Favorites ----------- Power Ion Engine Engine Ion Engine Power Core Light Nuclear Core Propulsion Light Treads Treads Light Treads Wheel Wheel Utility Large Storage Unit Device Seismic Detector Storage Large Storage Unit Hackware Hacking Suite Weapon Particle Gun Energy Gun Particle Gun Ballistic Gun Light Assault Rifle Build | -11 -10 -9 ------- Run | Yrd Mat Mat Slots Evolved 2 | . . 2 Power . | . . . Propulsion . | . . . Utility 2 | . . 2 Weapon . | . . . Parts Attached 28 | 10 11 7 Power 3 | 1 1 1 Engine 2 | 1 . 1 Core 1 | . 1 . Reactor . | . . . Propulsion 8 | 4 3 1 Treads 6 | 2 3 1 Leg . | . . . Wheel 2 | 2 . . Hover . | . . . Flight . | . . . Utility 7 | 2 3 2 Device 3 | 1 . 2 Storage 3 | 1 2 . Processor . | . . . Hackware 1 | . 1 . Protection . | . . . Artifact . | . . . Weapon 10 | 3 4 3 Energy Gun 6 | 2 3 1 Energy Cannon . | . . . Ballistic Gun 4 | 1 1 2 Ballistic Cannon . | . . . Launcher . | . . . Special Weapon . | . . . Impact Weapon . | . . . Slashing Weapon . | . . . Piercing Weapon . | . . . Special Melee Weapon . | . . . Unidentified Prototypes . | . . . Parts Lost 9 | . . 9 Power 2 | . . 2 Propulsion 2 | . . 2 Utility 1 | . . 1 Weapon 4 | . . 4 Highest Loss Streak 8 | . . 8 To Critical Strikes . | . . . Average Slot Usage (%) 99 | . 100 96 Engine 6 | . 8 . Core 6 | . 5 9 Treads 26 | . 28 20 Device 12 | . 9 21 Storage 13 | . 14 11 Hackware 5 | . 4 11 Energy Gun 18 | . 18 19 Ballistic Gun 7 | . 9 . Peak Build Rating 16 | 7 13 16 Average Rating 10 | 4 10 14 On Entrance 6 | . 7 13 Naked Turns . | . . . Heaviest Build 32 | 14 31 32 Greatest Support 43 | 40 40 43 Greatest Overweight (x) . | . . . Average Overweight (x) . | . . . Largest Inventory Capacity 15 | 8 15 15 Average Capacity 12 | 7 12 15 Most Carried 14 | 7 14 13 Average Carried 9 | 5 9 12 Final Capacity 15 | 8 15 15 Final Carried 14 | 6 14 10 Class Distribution -------------------- 84% | Mutant 15% | Scavenger-Mutant Dominant Class ---------------- Mutant | -10/Materials Scavenger-Mutant | -9/Materials Resources | -11 -10 -9 ----------- Run | Yrd Mat Mat Matter Collected 490 | 245 205 40 Remotely . | . . . Salvage Created 799 | 26 524 249 Parts 43 | 1 34 8 Haulers Intercepted . | . . . Recyclers Shooed 1 | 1 . . Parts Field Recycled . | . . . Retrieved Matter . | . . . Parts Self-Destructed . | . . . Prevented . | . . . Kills | -11 -10 -9 ------- Run | Yrd Mat Mat Combat Hostiles Destroyed 17 | . 11 6 Guns 16 | . 11 5 Classes Destroyed 6 | 1 4 1 Tunneler 3 | 1 2 . Recycler 1 | . . 1 Operator 2 | . 2 . Watcher 2 | . 2 . Swarmer 5 | . 2 3 Grunt 12 | . 9 3 Best Kill Streak 3 | 1 3 3 Combat Bots Only 3 | . 3 3 Max Kills in Single Turn 1 | 1 1 1 Gunslinging . | . . . Exploded . | . . . Melee . | . . . Uniques/NPCs Destroyed . | . . . Combat | -11 -10 -9 -------- Run | Yrd Mat Mat Hostile Shots Fired 143 | . 53 90 Missed 27 | . 14 13 Damage Taken 1329 | . 441 888 Core 249 | . 58 191 Absorbed by Shields . | . . . Core Remaining (%) 88 | 100 76 . Volleys Fired 86 | 5 48 33 Largest 2 | 2 2 2 Hottest 115 | 70 115 115 Shots Fired 161 | 10 96 55 Gun 161 | 10 96 55 Cannon . | . . . Launcher . | . . . Special . | . . . Kinetic 51 | 5 37 9 Thermal 97 | 5 59 33 Explosive . | . . . Electromagnetic 13 | . . 13 Robot Hit Streak 12 | 6 12 9 Robot Miss Streak 4 | 1 2 4 Penetration Max . | . . . Secondary Targets 2 | . 1 1 Max Gunslinging Chain 1 | . 1 1 Shots Hit Robots 113 | 9 69 35 Core Hits 46 | 2 30 14 Critical Kills . | . . . Critical Parts Destroyed . | . . . Critical Strikes 6 | . 2 4 Burn 6 | . 2 4 Melee Attacks . | . . . Impact . | . . . Slashing . | . . . Piercing . | . . . Sneak Attacks . | . . . Combat Hostiles . | . . . Follow-up Attacks . | . . . Damage Inflicted 1478 | 95 853 530 Guns 1393 | 95 845 453 Cannons . | . . . Explosions 77 | . . 77 Melee . | . . . Ramming 8 | . 8 . Kinetic 285 | 44 188 53 Thermal 1113 | 51 657 405 Explosive . | . . . Electromagnetic 72 | . . 72 Impact . | . . . Slashing . | . . . Piercing . | . . . Highest Corruption 2 | . 2 . Average Corruption 1 | . 1 . Corruption Purged . | . . . Corruption Blocked . | . . . Effects 5 | . 5 . Message Errors 2 | . 2 . Heat Flow Errors 1 | . 1 . Parts Rejected 1 | . 1 . Data Loss (minor) 1 | . 1 . Overload Shots . | . . . Overflow Damage 2 | . . 2 Projectiles . | . . . Explosions 2 | . . 2 Melee . | . . . Knockbacks . | . . . Impact . | . . . Kinetic . | . . . Secondary . | . . . Self-Inflicted Damage 35 | . . 35 Shots 1 | . . 1 Rammed 1 | . 1 . Targets Rammed 1 | . 1 . Kicked . | . . . Crushed . | . . . Highest Temperature 329 | 90 329 184 Average Temperature 89 | 53 86 105 Received Heat Transfer 600 | . 195 405 Effects 1 | . 1 . Short Circuit 1 | . 1 . Siege Activations . | . . . Robots Corrupted . | . . . Combat Hostiles . | . . . Parts Fried . | . . . Impact Corruptions . | . . . Robots Melted 1 | . . 1 Combat Hostiles 1 | . . 1 Parts Melted 5 | . 2 3 Heat Transferred 3332 | 148 1850 1334 Parts Sabotaged . | . . . Parts Stolen . | . . . Parts Stripped . | . . . Power Chain Reactions 1 | . . 1 Alert | -11 -10 -9 ------- Run | Yrd Mat Mat Peak Influence 208 | 5 208 174 Initial 68 | . 3 68 Average 75 | 1 79 89 Maximum Alert Level 1 | . 1 . Low Security (%) 98 | 100 97 100 Level 1 1 | . 2 . Level 2 . | . . . Level 3 . | . . . Level 4 . | . . . Level 5 . | . . . High Security . | . . . Max Security . | . . . Squads Dispatched 3 | . 3 . Investigation 3 | . 3 . Extermination . | . . . Reinforcement . | . . . Assault . | . . . Garrison . | . . . Intercept . | . . . Searches Triggered . | . . . Construction Impeded . | . . . Haulers Reinforced . | . . . Active Scanning Responses . | . . . Cargo Convoy Interrupts . | . . . Stealth | -11 -10 -9 --------- Run | Yrd Mat Mat Distress Signals 2 | . 2 . Communications Jammed . | . . . Distress Signals . | . . . Times Spotted 38 | . 26 12 Peak Tracking Total 6 | . 4 6 Tactical Retreats 4 | . 4 . Traps | -11 -10 -9 ------- Run | Yrd Mat Mat Traps Triggered 3 | . 3 . Indirectly . | . . . Trap Hack Attempts . | . . . Triggered . | . . . Disarmed . | . . . Reprogrammed . | . . . Reused . | . . . Traps Extracted . | . . . Installed . | . . . Triggered . | . . . Machines | -11 -10 -9 ---------- Run | Yrd Mat Mat Machines Disabled . | . . . Max in Single Turn . | . . . Machines Repaired . | . . . Machines Dismantled . | . . . Machines Sabotaged . | . . . Overloaded Fab Kills . | . . . Hacking | -11 -10 -9 --------- Run | Yrd Mat Mat Machines Accessed 3 | . 3 . Terminals 3 | . 3 . Fabricators . | . . . Repair Stations . | . . . Recycling Units . | . . . Scanalyzers . | . . . Garrison Access . | . . . Total Hacks 9 | . 9 . Successful 3 | . 3 . Failed 6 | . 6 . Catastrophic . | . . . Database Lockouts . | . . . Manual . | . . . Terminals 9 | . 9 . Fabricators . | . . . Repair Stations . | . . . Recycling Units . | . . . Scanalyzers . | . . . Garrison Access . | . . . Terminal Hacks 3 | . 3 . Alert Level 2 | . 2 . Dispatch Records 1 | . 1 . Fabricator Hacks . | . . . Repair Station Hacks . | . . . Recycling Unit Hacks . | . . . Scanalyzer . | . . . Garrison Access Hacks . | . . . Unauthorized Hacks . | . . . Terminals . | . . . Fabricators . | . . . Repair Stations . | . . . Recycling Units . | . . . Scanalyzers . | . . . Garrison Access . | . . . Data Cores Recovered 1 | . 1 . Used . | . . . Hacking Detections 3 | . 3 . Full Trace Events 2 | . 2 . Feedback Events 1 | . 1 . Corruption 1 | . 1 . Feedback Blocked . | . . . Robot Schematics Acquired . | . . . Robots Built . | . . . Authchips . | . . . Time . | . . . Total Robot Build Rating . | . . . Part Schematics Acquired . | . . . Parts Built . | . . . Authchips . | . . . Time . | . . . Total Part Build Rating . | . . . Parts Repaired . | . . . Time . | . . . Parts Recycled . | . . . Recycled Matter . | . . . Retrieved Matter . | . . . Retrieved Components . | . . . Parts Scanalyzed . | . . . Part Schematics Acquired . | . . . Parts Damaged . | . . . Bothacking | -11 -10 -9 ------------ Run | Yrd Mat Mat Used RIF Installer . | . . . Robots Hacked . | . . . Non-combat . | . . . Combat . | . . . Robot Hacks Applied . | . . . Relay Couplers Released . | . . . Fabnet Peak Effective % . | . . . Robots Rewired . | . . . Allies Hacked . | . . . Hacks Repelled . | . . . Allies | -11 -10 -9 -------- Run | Yrd Mat Mat Total Allies . | . . . Largest Group . | . . . Highest-Rated Group . | . . . Highest-Rated Ally . | . . . Total Orders . | . . . Ally Attacks . | . . . Total Damage . | . . . Kills . | . . . Allies Corrupted . | . . . Allies Melted . | . . . Intel | -11 -10 -9 ------- Run | Yrd Mat Mat Robot Analysis Total . | . . . Derelict Logs Recovered . | . . . Drone Launches . | . . . Drone Recoveries . | . . . Exploration | -11 -10 -9 ------------- Run | Yrd Mat Mat Turns Passed 1560 | 118 1128 314 Spaces Moved 753 | 71 550 132 Core 23 | 23 . . Treads 723 | 41 550 132 Legs . | . . . Wheels 7 | 7 . . Hover . | . . . Flight . | . . . Fastest Speed 50 | 50 160 160 Average Speed 155 | 116 160 160 Slowest Speed 160 | 160 160 160 Overloaded Moves . | . . . Propulsion Burnouts . | . . . Robots Hopped . | . . . Cave-ins Triggered . | . . . Exploration Rate (%) 33 | 5 80 15 Regions Visited 2 Branch Regions . Pre-discovered Areas . | . . . Known Exits Taken . | . . . Unknown Exits Taken 2 | 1 1 . Scrap Searched . | . . . Spaces Dug . | . . . Terrain Destroyed 2 | . . 2 Melee . | . . . Projectile . | . . . AOE 2 | . . 2 Terrain Rammed . | . . . Walls Destroyed . | . . . Machines Disabled . | . . . Actions | -11 -10 -9 --------- Run | Yrd Mat Mat Total 983 | 93 709 181 Wait 89 | . 82 7 Move 751 | 70 549 132 Hop . | . . . Pick Up 22 | 8 12 2 Fast Attach 5 | 5 . . Attach 10 | 2 2 6 Detach . | . . . Swap 13 | 3 9 1 Drop 6 | . 6 . Fire 86 | 5 48 33 Melee . | . . . Ram . | . . . Kick . | . . . Crush 1 | . 1 . Escape Stasis . | . . . Rewire . | . . . Trap . | . . . Miscellaneous . | . . . Route ------- -11/Scrapyard -10/Materials (discovered 3 exits: [*Mat x2] / [*Min]) -9/Materials (discovered 1 exit: [*Sto]) History --------- Turn | Location | Event 6 | -11/Scrapyard | Discovered new exit (range 15) 119 | -11/Scrapyard | Entered Materials 334 | -10/Materials | Build established: Mutant 423 | -10/Materials | Discovered new exit (range 11) 945 | -10/Materials | Discovered new exit (range 8) 1129 | -10/Materials | Discovered new exit (range 15) 1247 | -10/Materials | Entered another Materials area 1247 | -9/Materials | Evolved 2 slots: Utility x2 1318 | -9/Materials | Discovered new exit (range 11) 1561 | -9/Materials | Self-destructed Last Messages --------------- 01549_ Acquired Lgt. Assault Rifle. 01549_ M-13 Machinist repairs G-34 Mercenary. 01550_ U-05 Engineer lays Concrete. 01551_ K-01 Serf cleans the Hadron Collector. 01551_ U-05 Engineer lays Concrete. 01551_ M-13 Machinist fits Backup Power I on G-34 Mercenary. 01552_ U-05 Engineer lays Concrete. 01554_ Imp. Treads destroyed. 01555_ U-05 Engineer lays Concrete. 01555_ Heat Sink destroyed. 01556_ U-05 Engineer lays Concrete. 01556_ G-34 Mercenary destroyed. 01557_ K-01 Serf collects debris. 01557_ M-13 Machinist repairs G-47 Trooper. 01557_ K-01 Serf collects debris. 01558_ Ion Engine destroyed. 01560_ K-01 Serf collects debris. 01561_ Critical hit (Burn: +37). 01561_ K-01 Serf collects debris. Map ----- +----------------------------------------------------+ | ?????# #???# # ! #???????????????? | | ?????################???#%########???????????????? | | ????????????????????????#!#??????????????????????? | | ????????????????????????#+########???????????????? | | ????????????????????????# #???????????????? | | ????????????????????????#""" #???????????????? | | ????????????????????????#""" #???????????????? | | ????????????????????????#""" #???????????????? | | ????????????????????????# #???????????????? | | ??????????????????????#?#""" #???????????????? | | ??????????????????????# #""" #???????????????? | | ??????????????????????# #""" #???????????????? | | ??????????????????????# # #???????????????? | | ??????????????????????# #####?####???????????????? | | ??????????????????????# #?????????????????? | | ??????????????????????+ #?????????????????? | | ??????????????????????# #?????????????????? | | ??????????????????????### #?????????????????? | | ????????????????????????# #?????????????????? | | ????????????????????????# #?????????????????? | | ?????????????????########;## #?????????????????? | | ?????????????????# ## #?????????????????? | | ?????????????????# """ ## #?????????????????? | | ?????????????????# """ ## ##????????????????? | | ?????????????????# """ m# k ######+#?????????? | | ?????????????????# """ @%k a #????????? | | ?????????????????# kgg% T ???????? | | ?????????????????# u;u k % #????????? | | ?????????????????# % #| ##### #????????? | | ?????????????????# = ## ##????????????????? | | ?????????????????#######+##?% #?????????????????? | | ??????????????????????? ??? #?????????????????? | | ??????????????????????# ??? #?????????????????? | | ?????????????????????? ??? #?????????????????? | | ?????????????????????###+???####?????????????????? | | ?????????????????????????????????????????????????? | | ?????????????????????????????????????????????????? | | ?????????????????????????????????????????????????? | | ?????????????????????????????????????????????????? | | ?????????????????????????????????????????????????? | | ?????????????????????????????????????????????????? | | ?????????????????????????????????????????????????? | | ?????????????????????????????????????????????????? | | ?????????????????????????????????????????????????? | | ?????????????????????????????????????????????????? | | ?????????????????????????????????????????????????? | | ?????????????????????????????????????????????????? | | ?????????????????????????????????????????????????? | | ?????????????????????????????????????????????????? | | ?????????????????????????????????????????????????? | +----------------------------------------------------+ Best States ------------- Heat Dissipation 38 Energy Generation 14 Energy Capacity 250 Matter Stores 300 Matter Capacity 300 Sight Range 16 Robot Scan Range 14 Terrain Scan Density 10 Evasion (%) 50 Recoil Reduction 2 Offensive Hacking 10 Item Schematics ----------------- None Robot Schematics ------------------ None Fabricated ------------ Nothing Alien Tech Used ----------------- None Achievements -------------- None Challenges ------------ None Game ------ Seed TitaniumReflectiveClaw Manual? 0 Play Time 00:10:01 Cumulative 20.2 hours Start 2024.10.19 @ 22:33:07 End 2024.10.19 @ 22:41:49 Sessions 1 Manual Loads 0 Difficulty Rogue Special Mode None Game No. 61 Rogue 61 Adventurer 0 Explorer 0 Win Type - Total 0 Types 0/0/0/0/0/0/0/0/0 Lore% 6 Gallery% 25 Achievement% 20 Wizard Run 0 Options --------- Layout 1 ASCII 0 Keyboard 0 Movement Mouse Keybinds 0 Fullscreen 2 Font 24/Smallcaps Map View 50x35 Zoom Use 0% Tactical HUD 1 Map Filters NONE Filters NONE Steam 1 RUN: a6b02ae9-e47c-4c22-9d4e-07dbf6b795f0